bitfinex-derivatives/quotes_BTCF0:USTF0_20251115
["timestamp","ask_amount","ask_price","bid_price","bid_amount"]
[1763191589774,0.0148,96426.0,96423.0,0.3608]
[1763191589981,0.0148,96424.0,96423.0,0.38222]
[1763191590374,0.12537867,96424.0,96423.0,0.4036]
[1763191591473,0.12637867,96424.0,96423.0,0.3608]
[1763191591676,0.12637867,96424.0,96423.0,0.4036]
[1763191591984,0.12737867,96424.0,96423.0,0.38222]
[1763191592182,0.12737867,96424.0,96423.0,0.4036]
[1763191593388,0.12737867,96424.0,96423.0,0.3608]
[1763191593885,0.12737867,96424.0,96423.0,0.4036]
[1763191594282,0.12737867,96424.0,96423.0,0.3608]
[1763191594585,0.12637867,96424.0,96423.0,0.4036]
[1763191594784,0.12737867,96424.0,96423.0,0.4036]
[1763191595187,0.12637867,96424.0,96423.0,0.4036]
[1763191595487,0.12737867,96424.0,96423.0,0.4036]
[1763191597381,0.12637867,96424.0,96423.0,0.4036]
[1763191597788,0.12737867,96424.0,96423.0,0.0428]
[1763191605280,0.12637867,96424.0,96423.0,0.0428]
[1763191605483,0.12737867,96424.0,96423.0,0.0428]
[1763191636513,0.1024542,96424.0,96423.0,0.0428]
[1763191643115,0.1024542,96424.0,96423.0,0.09867862]
[1763191643315,0.1024542,96424.0,96423.0,0.0428]
[1763191643515,0.1024542,96424.0,96423.0,0.09867862]
[1763191643816,0.1024542,96424.0,96423.0,0.0428]
[1763191644612,0.1024542,96424.0,96423.0,0.09868374]
[1763191645822,0.1024542,96424.0,96423.0,0.0428]
[1763191646519,0.1024542,96424.0,96423.0,0.09868374]
[1763191646714,0.1024542,96424.0,96423.0,0.0428]
[1763191650515,0.1024542,96424.0,96423.0,0.09865027]
[1763191655830,0.1024542,96424.0,96423.0,0.0428]
[1763191658322,0.1024542,96424.0,96423.0,0.09866562]
[1763191660221,0.1024542,96424.0,96423.0,0.0428]
[1763191660622,0.1024542,96424.0,96423.0,0.0986683]
[1763191661231,0.1024542,96424.0,96423.0,0.0428]
[1763191662329,0.1024542,96424.0,96423.0,0.02142]
[1763191662534,0.1024542,96424.0,96423.0,0.04306]
[1763191666437,0.1024542,96424.0,96423.0,0.40386]
[1763191671133,0.1024542,96424.0,96420.0,0.01467826]
[1763191671134,0.1024542,96424.0,96420.0,0.00088826]
[1763191671330,0.1024542,96424.0,96420.0,0.02351826]
[1763191671531,0.1024542,96424.0,96420.0,0.03643826]
[1763191671932,0.1024542,96424.0,96420.0,0.05807826]
[1763191673137,0.1014542,96424.0,96420.0,0.05807826]
[1763191673340,0.1014542,96424.0,96423.0,0.04427]
[1763191673728,0.1004542,96424.0,96423.0,0.04427]
[1763191674542,0.1014542,96424.0,96423.0,0.04427]
[1763191676035,0.1024542,96424.0,96423.0,0.04427]
[1763191676835,0.1014542,96424.0,96423.0,0.04427]
[1763191677036,0.1024542,96424.0,96423.0,0.04427]
[1763191679336,0.1024542,96424.0,96423.0,0.08155529]
[1763191681540,0.1024542,96424.0,96423.0,0.04427]
[1763191682645,0.1024542,96424.0,96422.0,0.3608]
[1763191683649,0.1024542,96424.0,96420.0,0.00015559]
[1763191684038,0.1004542,96424.0,96420.0,0.00015559]
[1763191684438,0.3608,96422.0,96420.0,0.00015559]
[1763191684639,0.3608,96422.0,96406.0,0.02134]
[1763191684839,0.10368001,96410.0,96403.0,0.41942529]
[1763191685040,0.00219803,96410.0,96403.0,0.3608]
[1763191685242,0.11604227,96409.0,96403.0,0.3608]
[1763191686646,0.11604227,96409.0,96400.0,0.01419267]
[1763191686647,0.11604227,96409.0,96400.0,0.04506267]
[1763191687142,0.11604227,96409.0,96396.0,0.00015559]
[1763191687353,0.21328838,96406.0,96396.0,0.02149559]
[1763191687541,0.21328838,96406.0,96400.0,0.00073267]
[1763191687737,0.11230959,96405.0,96396.0,0.02149559]
[1763191687938,0.3608,96397.0,96396.0,0.00015559]
[1763191688138,0.3608,96397.0,96375.0,0.03728529]
[1763191688345,0.00219803,96390.0,96380.0,0.00073267]
[1763191688744,0.11007481,96389.0,96380.0,0.00073267]
[1763191689639,0.11007481,96389.0,96383.0,0.3618]
[1763191689839,0.11007481,96389.0,96383.0,0.38314]
[1763191690346,0.11007481,96389.0,96383.0,0.38414]
[1763191690856,0.11007481,96389.0,96383.0,0.002]
[1763191690857,0.3608,96387.0,96383.0,0.002]
[1763191691342,0.10792782,96386.0,96383.0,0.002]
[1763191692447,0.10792782,96386.0,96383.0,0.001]
[1763191692752,0.10792782,96386.0,96383.0,0.002]
[1763191692953,0.10792782,96386.0,96376.0,0.00015559]
[1763191693151,0.25027442,96386.0,96376.0,0.00015559]
[1763191693351,0.25027442,96386.0,96383.0,0.001]
[1763191693550,0.10792782,96386.0,96383.0,0.002]
[1763191694355,0.10792782,96386.0,96383.0,0.001]
[1763191694853,0.3608,96384.0,96376.0,0.00015559]
[1763191695242,0.11143553,96383.0,96376.0,0.00015559]
[1763191695447,0.3608,96377.0,96366.0,0.00025943]
[1763191695749,0.3608,96367.0,96366.0,0.00025943]
[1763191696256,0.47408401,96367.0,96348.0,0.0353]
[1763191696455,0.3608,96357.0,96350.0,0.00073267]
[1763191696651,0.3608,96357.0,96355.0,0.0576]
[1763191696956,0.14454463,96360.0,96355.0,0.0576]
[1763191696957,0.11784215,96356.0,96355.0,0.0576]
[1763191697358,0.11784215,96359.0,96358.0,0.04383]
[1763191697653,0.00219803,96360.0,96359.0,0.04383]
[1763191698049,0.11417818,96360.0,96359.0,0.04383]
[1763191698362,0.11417818,96360.0,96359.0,0.40463]
[1763191699845,0.11417818,96360.0,96359.0,0.04383]
[1763191700250,0.11417818,96360.0,96351.0,0.3608]
[1763191701455,0.3608,96352.0,96350.0,0.00073267]
[1763191701856,0.11171652,96351.0,96350.0,0.00073267]
[1763191702057,0.00219803,96350.0,96348.0,0.01377]
[1763191702464,0.11426039,96349.0,96348.0,0.01377]
[1763191702865,0.11426039,96349.0,96348.0,0.0576]
[1763191728484,0.11476204,96359.0,96355.0,0.01317]
[1763191728684,0.11476204,96359.0,96358.0,0.40671]
[1763191728880,0.00219803,96360.0,96359.0,0.04591]
[1763191729288,0.11696007,96360.0,96359.0,0.04591]
[1763191730386,0.11476204,96360.0,96359.0,0.04591]
[1763191730585,0.11476204,96360.0,96359.0,0.40671]
[1763191730781,0.11219357,96366.0,96365.0,0.01317]
[1763191730990,0.00015568,96367.0,96366.0,0.04591]
[1763191731484,0.11234925,96367.0,96366.0,0.04591]
[1763191732291,0.11334925,96367.0,96366.0,0.02284]
[1763191732587,0.11334925,96367.0,96365.0,0.01317]
[1763191733086,0.15030307,96367.0,96365.0,0.03601]
[1763191734281,0.15030307,96367.0,96365.0,0.05908]
[1763191734680,0.14930307,96367.0,96365.0,0.05908]
[1763191734889,0.15030307,96367.0,96365.0,0.05908]
[1763191735594,0.11334925,96367.0,96360.0,0.00073267]
[1763191735788,0.03735798,96362.0,96360.0,0.00073267]
[1763191736188,0.11658059,96361.0,96360.0,0.00073267]
[1763191737094,0.11113788,96364.0,96360.0,0.00073267]
[1763191737293,0.05557724,96365.0,96360.0,0.00073267]
[1763191737294,0.03736026,96361.0,96360.0,0.00073267]
[1763191737491,0.11227274,96364.0,96360.0,0.00073267]
[1763191737793,0.11227274,96361.0,96360.0,0.00073267]
[1763191737994,0.05557724,96365.0,96360.0,0.00073267]
[1763191738186,0.11327274,96364.0,96360.0,0.00073267]
[1763191738892,0.11227274,96364.0,96360.0,0.00073267]
[1763191739190,0.03735918,96361.0,96360.0,0.00073267]
[1763191739692,0.14800398,96361.0,96360.0,0.00073267]
[1763191740588,0.14800398,96361.0,96360.0,0.05867267]
[1763191741290,0.1106448,96361.0,96360.0,0.05867267]
[1763191743195,0.10865311,96365.0,96360.0,0.05867267]
[1763191743597,0.00015568,96367.0,96360.0,0.05867267]
[1763191743791,0.11139083,96364.0,96360.0,0.05867267]
[1763191744303,0.00015568,96367.0,96366.0,0.05794]
[1763191744699,0.11082356,96367.0,96366.0,0.05794]
[1763191745399,0.11182356,96367.0,96366.0,0.05794]
[1763191748602,0.11082356,96367.0,96366.0,0.05794]
[1763191748803,0.11182356,96367.0,96366.0,0.05794]
[1763191763598,0.11182356,96367.0,96366.0,0.09506721]
[1763191763806,0.11182356,96367.0,96366.0,0.05794]
[1763191766307,0.11182356,96367.0,96366.0,0.09506105]
[1763191767806,0.11182356,96367.0,96366.0,0.05794]
[1763191768307,0.11182356,96367.0,96366.0,0.09506105]
[1763191768516,0.11182356,96367.0,96366.0,0.05794]
[1763191769506,0.11182356,96367.0,96364.0,0.3608]
[1763191769706,0.11182356,96367.0,96364.0,0.38244]
[1763191770307,0.11182356,96367.0,96364.0,0.3608]
[1763191770906,0.11082356,96367.0,96364.0,0.38244]
[1763191771315,0.11082356,96367.0,96364.0,0.3608]
[1763191772110,0.11082356,96367.0,96360.0,0.00073267]
[1763191772516,0.3608,96366.0,96355.0,0.38244]
[1763191772707,0.00219803,96360.0,96355.0,0.38244]
[1763191773106,0.11084985,96359.0,96355.0,0.38244]
[1763191773710,0.11084985,96359.0,96355.0,0.40385]
[1763191780016,0.11084985,96359.0,96358.0,0.04305]
[1763191798339,0.11084985,96359.0,96358.0,0.08017105]
[1763191798340,0.03712365,96359.0,96358.0,0.08017105]
[1763191798545,0.00015568,96367.0,96366.0,0.04489]
[1763191798737,0.00015568,96367.0,96366.0,0.40569]
[1763191800141,0.00015568,96367.0,96366.0,0.41628659]
[1763191800335,0.00015568,96367.0,96366.0,0.50961169]
[1763191800535,0.00015568,96367.0,96366.0,0.41628659]
[1763191800736,0.00015568,96367.0,96366.0,0.41828659]
[1763191800737,0.00115568,96367.0,96366.0,0.41828659]
[1763191800946,0.04406932,96406.0,96405.0,0.04489]
[1763191801238,0.15577812,96406.0,96405.0,0.40569]
[1763191801442,0.15577812,96406.0,96405.0,0.35766631]
[1763191801642,0.05147,96396.0,96395.0,0.40569]
[1763191802145,0.15947586,96396.0,96395.0,0.40569]
[1763191803239,0.15947586,96396.0,96395.0,0.40669]
[1763191803639,0.17290586,96396.0,96395.0,0.40669]
[1763191803948,0.17290586,96396.0,96395.0,0.40569]
[1763191809150,0.17290586,96396.0,96395.0,0.3608]
[1763191809551,0.17290586,96396.0,96395.0,0.40569]
[1763191812049,0.15947586,96396.0,96395.0,0.40569]
[1763191821758,0.15947586,96396.0,96395.0,0.41654]
[1763191821958,0.15947586,96396.0,96395.0,0.40569]
[1763191823662,0.15947586,96396.0,96395.0,0.41912]
[1763191828365,0.15947586,96396.0,96395.0,0.45619061]
[1763191829059,0.15947586,96396.0,96395.0,0.41912]
[1763191831668,0.05851,96392.0,96391.0,0.05871061]
[1763191831863,0.05851,96392.0,96391.0,0.04485]
[1763191832067,0.178052,96392.0,96391.0,0.02164]
[1763191832254,0.178052,96392.0,96391.0,0.04485]
[1763191832763,0.04582,96389.0,96388.0,0.02789515]
[1763191832959,0.04582,96389.0,96388.0,0.04953515]
[1763191833162,0.15562598,96389.0,96388.0,0.02164]
[1763191833366,0.15562598,96389.0,96388.0,0.04485]
[1763191833768,0.15562598,96389.0,96388.0,0.07274515]
[1763191834160,0.15562598,96389.0,96388.0,0.04485]
[1763191835463,0.15562598,96389.0,96388.0,0.02164]
[1763191835769,0.04582,96388.0,96387.0,0.3608]
[1763191836164,0.16591111,96388.0,96387.0,0.3608]
[1763191836867,0.04582,96387.0,96386.0,0.00015559]
[1763191837058,0.04582,96387.0,96386.0,0.02179559]
[1763191837260,0.16367218,96387.0,96386.0,0.00015559]
[1763191841162,0.04582,96377.0,96376.0,0.07274515]
[1763191841469,0.16626437,96377.0,96376.0,0.07274515]
[1763191843169,0.16626437,96377.0,96376.0,0.04485]
[1763191855881,0.16626437,96377.0,96376.0,0.07274515]
[1763191856274,0.16626437,96377.0,96376.0,0.04485]
[1763191860679,0.12044437,96377.0,96376.0,0.04485]
[1763191861183,0.13527155,96385.0,96384.0,0.05547]
[1763191861377,0.13527155,96385.0,96384.0,0.40448]
[1763191861378,0.04228,96385.0,96384.0,0.40448]
[1763191861574,0.15647155,96385.0,96384.0,0.40448]
[1763191862372,0.15647155,96385.0,96384.0,0.3608]
[1763191862879,0.04228,96381.0,96380.0,0.00073267]
[1763191863279,0.1537272,96381.0,96380.0,0.00073267]
[1763191864481,0.04228,96378.0,96377.0,0.07153313]
[1763191864882,0.15853405,96378.0,96377.0,0.04368]
[1763191865080,0.04228,96374.0,96373.0,0.3608]
[1763191865382,0.16032643,96374.0,96373.0,0.3608]
[1763191865683,0.04228,96368.0,96367.0,0.00015559]
[1763191866087,0.15541183,96368.0,96367.0,0.00015559]
[1763191869087,0.15541183,96368.0,96367.0,0.04383559]
[1763191870984,0.15541183,96368.0,96367.0,0.07170759]
[1763191872584,0.13421183,96368.0,96367.0,0.07170759]
[1763191872788,0.15537183,96368.0,96367.0,0.07170759]
[1763191873287,0.15537183,96368.0,96367.0,0.04383559]
[1763191876795,0.15537183,96368.0,96367.0,0.00015559]
[1763191876988,0.15537183,96368.0,96367.0,0.04406559]
[1763191878190,0.15537183,96368.0,96367.0,0.00015559]
[1763191881991,0.15537183,96368.0,96367.0,0.04406559]
[1763191882785,0.15537183,96368.0,96367.0,0.40486559]
[1763191882988,0.15537183,96368.0,96367.0,0.00015559]
[1763191883285,0.15537183,96368.0,96367.0,0.02159559]
[1763191883892,0.15537183,96368.0,96367.0,0.00015559]
[1763191891598,0.04451,96353.0,96351.0,0.03712556]
[1763191891795,0.05743,96350.0,96349.0,0.08243556]
[1763191892099,0.15781411,96350.0,96349.0,0.04531]
[1763191892992,0.15781411,96350.0,96349.0,0.04631]
[1763191894301,0.15781411,96350.0,96349.0,0.04531]
[1763191894491,0.15781411,96350.0,96349.0,0.04631]
[1763191894894,0.15781411,96350.0,96349.0,0.08248311]
[1763191895601,0.15781411,96350.0,96340.0,0.01301568]
[1763191895602,0.17073411,96350.0,96347.0,0.03717311]
[1763191895800,0.04451,96344.0,96341.0,0.03717311]
[1763191896003,0.04451,96344.0,96343.0,0.40611]
[1763191896202,0.04451,96344.0,96343.0,0.43398811]
[1763191896203,0.1569413,96344.0,96343.0,0.43398811]
[1763191897103,0.1569413,96344.0,96343.0,0.40611]
[1763191901407,0.1569413,96344.0,96343.0,0.02322]
[1763191901904,0.1569413,96344.0,96340.0,0.00088835]
[1763191901905,0.04451,96341.0,96340.0,0.00088835]
[1763191902100,0.04451,96341.0,96340.0,0.00015568]
[1763191902302,0.16025663,96341.0,96340.0,0.00015568]
[1763191902497,0.16025663,96341.0,96339.0,0.00011439]
[1763191902498,0.05962803,96340.0,96339.0,0.00011439]
[1763191902801,0.05962803,96340.0,96326.0,0.00025954]
[1763191902802,0.04451,96327.0,96326.0,0.00025954]
[1763191903004,0.05743,96312.0,96311.0,0.07318811]
[1763191903208,0.05743,96312.0,96311.0,0.04531]
[1763191903507,0.17236945,96312.0,96311.0,0.04531]
[1763191903907,0.17245028,96312.0,96311.0,0.04531]
[1763191904305,0.17245028,96312.0,96309.0,0.38501]
[1763191904306,0.04670803,96310.0,96309.0,0.38501]
[1763191904815,0.13276093,96310.0,96309.0,0.43032]
[1763191905003,0.15548093,96310.0,96309.0,0.43032]
[1763191911713,0.11097093,96310.0,96309.0,0.43032]
[1763191911911,0.11097093,96310.0,96309.0,0.79112]
[1763191912112,0.1087729,96310.0,96309.0,0.79112]
[1763191912416,0.11762514,96311.0,96310.0,0.00073267]
[1763191912719,8.083e-05,96312.0,96311.0,0.04531]
[1763191913015,0.11610732,96312.0,96311.0,0.04531]
[1763191913807,0.11610732,96312.0,96311.0,0.04631]
[1763191914208,0.11610732,96312.0,96311.0,0.04731]
[1763191917025,0.11610732,96312.0,96311.0,0.04631]
[1763191917516,0.11610732,96312.0,96311.0,0.04731]
[1763191918913,0.11610732,96312.0,96311.0,0.04631]
[1763191919113,0.11610732,96312.0,96311.0,0.07518811]
[1763191919716,0.11610732,96312.0,96311.0,0.07318811]
[1763191919910,0.11610732,96312.0,96311.0,0.07518811]
[1763191920313,0.11610732,96312.0,96311.0,0.07418811]
[1763191920509,0.11610732,96312.0,96311.0,0.04731]
[1763191920714,0.11610732,96312.0,96311.0,0.07511347]
[1763191920919,0.11610732,96312.0,96311.0,0.04731]
[1763191921312,0.13826732,96312.0,96311.0,0.04731]
[1763191921509,0.15957732,96312.0,96311.0,0.04731]
[1763191923319,0.15957732,96312.0,96311.0,0.04631]
[1763191924117,0.15957732,96312.0,96311.0,0.04531]
[1763191925214,0.15957732,96312.0,96311.0,0.07312673]
[1763191925415,0.15957732,96312.0,96311.0,0.04531]
[1763191926621,0.13826732,96312.0,96311.0,0.04731]
[1763191927015,0.13826732,96312.0,96311.0,0.04631]
[1763191927016,0.15957732,96312.0,96311.0,0.04631]
[1763191927216,0.15957732,96312.0,96311.0,0.04731]
[1763191928124,0.15957732,96312.0,96311.0,0.04631]
[1763191928425,0.15957732,96312.0,96311.0,0.04731]
[1763191928718,0.15957732,96312.0,96311.0,0.04631]
[1763191928923,0.15957732,96312.0,96311.0,0.04731]
[1763191929518,0.15957732,96312.0,96311.0,0.04631]
[1763191929921,0.15957732,96312.0,96311.0,0.04731]
[1763191930320,0.15957732,96312.0,96311.0,0.04631]
[1763191930527,0.15957732,96312.0,96311.0,0.04731]
[1763191931114,0.15957732,96312.0,96311.0,0.08448311]
[1763191931325,0.15957732,96312.0,96311.0,0.08348311]
[1763191931527,0.15957732,96312.0,96311.0,0.08448311]
[1763191932226,0.15957732,96312.0,96311.0,0.04731]
[1763191932428,0.15957732,96312.0,96311.0,0.04631]
[1763191932629,0.15957732,96312.0,96311.0,0.04731]
[1763191932827,0.15957732,96312.0,96311.0,0.04631]
[1763191933027,0.15957732,96312.0,96311.0,0.04731]
[1763191933528,0.11610732,96312.0,96311.0,0.04731]
[1763191933827,0.11610732,96312.0,96311.0,0.1029948]
[1763191935831,0.11610732,96312.0,96311.0,0.1019948]
[1763191936032,0.11610732,96312.0,96311.0,0.04731]
[1763191936426,0.11610732,96312.0,96311.0,0.04531]
[1763191936625,0.11610732,96312.0,96311.0,0.04731]
[1763191938927,0.11610732,96312.0,96311.0,0.04631]
[1763191939330,0.11610732,96312.0,96311.0,0.04731]
[1763191939533,0.11610732,96312.0,96311.0,0.04631]
[1763191939732,0.11610732,96312.0,96311.0,0.04731]
[1763191939932,0.11610732,96312.0,96311.0,0.04631]
[1763191940229,0.11610732,96312.0,96311.0,0.04731]
[1763191940630,0.11610732,96312.0,96311.0,0.04631]
[1763191940933,0.11610732,96312.0,96311.0,0.04731]
[1763191942832,0.00015568,96321.0,96320.0,0.05733]
[1763191943139,0.04227,96340.0,96339.0,0.04497]
[1763191943330,0.04227,96340.0,96339.0,0.44301019]
[1763191943532,0.15214994,96340.0,96339.0,0.44301019]
[1763191943732,0.15214994,96340.0,96339.0,0.40577]
[1763191944129,0.15434797,96340.0,96339.0,0.44299403]
[1763191945128,0.15434797,96340.0,96339.0,0.40577]
[1763191945530,0.15534797,96340.0,96339.0,0.40577]
[1763191945731,0.11087994,96340.0,96339.0,0.40577]
[1763191945931,0.10936656,96340.0,96339.0,0.40577]
[1763191946130,0.00015568,96349.0,96348.0,0.04497]
[1763191946335,0.00015568,96349.0,96348.0,0.4429435]
[1763191946540,0.11578741,96349.0,96348.0,0.4429435]
[1763191946729,0.11578741,96349.0,96348.0,0.40577]
[1763191946930,0.00015568,96349.0,96348.0,0.40577]
[1763191947129,0.00015568,96349.0,96348.0,0.46149149]
[1763191948131,0.00015568,96349.0,96348.0,0.40677]
[1763191948940,0.00015568,96349.0,96348.0,0.40777]
[1763191951531,0.00015568,96349.0,96348.0,0.40677]
[1763191951731,0.04641568,96349.0,96348.0,0.40777]
[1763191952039,0.16529992,96349.0,96348.0,0.40777]
[1763191952230,0.16529992,96349.0,96348.0,0.40677]
[1763191952432,0.16529992,96349.0,96348.0,0.40777]
[1763191953734,0.16529992,96349.0,96348.0,0.38582]
[1763191953935,0.16529992,96349.0,96348.0,0.39060262]
[1763191954135,0.16529992,96349.0,96348.0,0.43411262]
[1763191954530,0.16529992,96349.0,96348.0,0.40531]
[1763191954731,0.16529992,96349.0,96348.0,0.40631]
[1763191955240,0.16529992,96349.0,96348.0,0.3608]
[1763191955938,0.11903992,96349.0,96348.0,0.41762]
[1763191957625,0.11903992,96349.0,96348.0,0.41862]
[1763191957941,0.11903992,96349.0,96348.0,0.41962]
[1763191958236,0.11903992,96349.0,96348.0,0.44742262]
[1763191959441,0.14197992,96349.0,96348.0,0.44742262]
[1763191959634,0.16529992,96349.0,96348.0,0.41962]
[1763191960241,0.16529992,96349.0,96348.0,0.40531]
[1763191960443,0.16529992,96349.0,96348.0,0.40631]
[1763191960942,0.16529992,96349.0,96348.0,0.41962]
[1763191961135,0.16529992,96349.0,96348.0,0.41862]
[1763191961335,0.16529992,96349.0,96348.0,0.41762]
[1763191961542,0.16529992,96349.0,96348.0,0.40531]
[1763191962039,0.16529992,96349.0,96348.0,0.41762]
[1763191965135,0.16529992,96349.0,96348.0,0.44542262]
[1763191966334,0.16529992,96349.0,96348.0,0.44546549]
[1763191966539,0.16529992,96349.0,96348.0,0.3827]
[1763191966745,0.16529992,96349.0,96348.0,0.3608]
[1763191967331,0.16529992,96349.0,96348.0,0.3827]
[1763191968841,0.16529992,96349.0,96348.0,0.40431]
[1763191969239,0.16529992,96349.0,96348.0,0.43215641]
[1763191970133,0.16529992,96349.0,96348.0,0.40431]
[1763191970737,0.16529992,96349.0,96348.0,0.3827]
[1763191971040,0.16529992,96349.0,96348.0,0.40431]
[1763191973250,0.16529992,96349.0,96348.0,0.3608]
[1763191973745,0.16529992,96349.0,96348.0,0.3827]
[1763191973945,0.16529992,96349.0,96348.0,0.40431]
[1763191974142,0.16529992,96349.0,96348.0,0.44138422]
[1763191975345,0.16529992,96349.0,96348.0,0.08058422]
[1763191975941,0.16529992,96349.0,96348.0,0.04351]
[1763191978745,0.16529992,96349.0,96348.0,0.08074464]
[1763191979949,0.16529992,96349.0,96348.0,0.04351]
[1763191980452,0.0441,96347.0,96346.0,0.41139419]
[1763191980753,0.15927091,96347.0,96346.0,0.40457]
[1763191980953,0.11517091,96347.0,96346.0,0.40457]
[1763191981153,0.13653091,96347.0,96346.0,0.40457]
[1763191981353,0.02136,96347.0,96346.0,0.40457]
[1763191981653,0.15891893,96347.0,96346.0,0.40457]
[1763191983950,0.15891893,96347.0,96346.0,0.40557]
[1763191984555,0.15891893,96347.0,96346.0,0.40457]
[1763191985054,0.15891893,96347.0,96346.0,0.46029149]
[1763191985356,0.15891893,96347.0,96346.0,0.40457]
[1763191988956,0.15891893,96347.0,96346.0,0.3608]
[1763191989753,0.15891893,96347.0,96335.0,0.3608]
[1763191989754,0.0441,96341.0,96335.0,0.3608]
[1763191989955,0.05782,96336.0,96335.0,0.38346]
[1763191990153,0.05782,96336.0,96335.0,0.46047795]
[1763191990349,0.17338701,96336.0,96335.0,0.40457]
[1763191993252,0.17338701,96336.0,96335.0,0.3608]
[1763191996061,0.0437,96331.0,96330.0,0.07467243]
[1763191996261,0.0437,96331.0,96330.0,0.07466675]
[1763191996465,0.15533346,96331.0,96330.0,0.07466675]
[1763191997355,0.15533346,96331.0,96330.0,0.04674835]
[1763192011367,0.15533346,96331.0,96330.0,0.00015568]
[1763192014268,0.15533346,96331.0,96330.0,0.00088835]
[1763192014474,0.15533346,96331.0,96330.0,0.04483835]
[1763192015575,0.15533346,96331.0,96330.0,0.00088835]
[1763192016075,0.15533346,96331.0,96330.0,0.00015568]
[1763192023585,0.15533346,96331.0,96330.0,0.04410568]
[1763192023778,0.15533346,96331.0,96330.0,0.04483835]
[1763192024980,0.15533346,96331.0,96330.0,0.02298835]
[1763192025179,0.15533346,96331.0,96330.0,0.00088835]
[1763192027585,0.15533346,96331.0,96330.0,0.02298835]
[1763192028583,0.15533346,96331.0,96330.0,0.04483835]
[1763192035884,0.13289346,96331.0,96330.0,0.08208968]
[1763192036088,0.11163346,96331.0,96330.0,0.04483835]
[1763192036393,0.10973373,96339.0,96336.0,0.01279]
[1763192036580,0.10973373,96339.0,96338.0,0.40475]
[1763192036780,0.02259,96339.0,96338.0,0.40475]
[1763192036989,0.04574,96339.0,96338.0,0.40475]
[1763192037184,0.15547373,96339.0,96338.0,0.40475]
[1763192039587,0.15547373,96339.0,96338.0,0.38870957]
[1763192040284,0.15547373,96339.0,96338.0,0.41083957]
[1763192040477,0.15547373,96339.0,96338.0,0.40591]
[1763192040882,0.15547373,96339.0,96338.0,0.43381957]
[1763192041282,0.15547373,96339.0,96338.0,0.40591]
[1763192041485,0.15547373,96339.0,96338.0,0.3608]
[1763192041681,0.15547373,96339.0,96330.0,0.00015568]
[1763192041682,0.15547373,96339.0,96336.0,0.02790838]
[1763192041886,0.05684,96335.0,96334.0,0.02790838]
[1763192042194,0.04524,96333.0,96332.0,0.02790838]
[1763192042596,0.15941934,96333.0,96332.0,0.02790838]
[1763192042798,0.04524,96331.0,96330.0,0.00015568]
[1763192043091,0.15941934,96331.0,96330.0,0.00015568]
[1763192047294,0.15941934,96331.0,96330.0,0.02301835]
[1763192047489,0.15941934,96331.0,96330.0,0.04599835]
[1763192048893,0.15941934,96331.0,96330.0,0.02301835]
[1763192049098,0.15941934,96331.0,96330.0,0.04599835]
[1763192052196,0.15941934,96331.0,96330.0,0.00088835]
[1763192052393,0.15941934,96331.0,96330.0,0.04676835]
[1763192065600,0.11417934,96331.0,96330.0,0.04676835]
[1763192065805,0.11417934,96331.0,96330.0,0.08401148]
[1763192066107,0.04559568,96349.0,96348.0,0.04588]
[1763192066296,0.04559568,96349.0,96348.0,0.05926]
[1763192066501,0.15395379,96349.0,96348.0,0.05926]
[1763192067803,0.10851379,96349.0,96348.0,0.05926]
[1763192069311,0.10851379,96349.0,96348.0,0.08714744]
[1763192069916,0.10851379,96349.0,96348.0,0.05926]
[1763192071199,0.15219379,96349.0,96348.0,0.05926]
[1763192071404,0.10851379,96349.0,96348.0,0.08712837]
[1763192071908,0.15219379,96349.0,96348.0,0.05926]
[1763192072110,0.15219379,96349.0,96348.0,0.08713152]
[1763192072311,0.12989379,96349.0,96348.0,0.05926]
[1763192073013,0.15219379,96349.0,96348.0,0.05926]
[1763192075105,0.15219379,96349.0,96348.0,0.08713152]
[1763192075312,0.15219379,96349.0,96348.0,0.05926]
[1763192076209,0.15219379,96349.0,96348.0,0.08713152]
[1763192076415,0.15219379,96349.0,96348.0,0.05926]
[1763192077517,0.15219379,96349.0,96348.0,0.04588]
[1763192078408,0.15219379,96349.0,96348.0,0.05907]
[1763192081523,0.12989379,96349.0,96348.0,0.08694152]
[1763192081721,0.12989379,96349.0,96348.0,0.05907]
[1763192081913,0.15219379,96349.0,96348.0,0.05907]
[1763192085018,0.15219379,96349.0,96348.0,0.08694152]
[1763192085925,0.15219379,96349.0,96348.0,0.05907]
[1763192088325,0.15219379,96349.0,96348.0,0.08694152]
[1763192088920,0.15219379,96349.0,96348.0,0.04588]
[1763192090331,0.15219379,96349.0,96348.0,0.07375152]
[1763192091330,0.15219379,96349.0,96348.0,0.40668]
[1763192096633,0.15219379,96349.0,96348.0,0.38342]
[1763192096823,0.15219379,96349.0,96348.0,0.39807429]
[1763192097437,0.15219379,96349.0,96348.0,0.3608]
[1763192099639,0.15219379,96349.0,96348.0,0.39809098]
[1763192100234,0.04331,96343.0,96342.0,0.0558647]
[1763192100439,0.04331,96342.0,96341.0,0.3608]
[1763192100833,0.04331,96342.0,96340.0,0.03730081]
[1763192100834,0.04331,96339.0,96338.0,0.03730081]
[1763192101029,0.01559803,96340.0,96332.0,0.3608]
[1763192101030,0.02353803,96340.0,96339.0,0.04433]
[1763192101436,0.16384328,96340.0,96339.0,0.04433]
[1763192103243,0.04331,96335.0,96334.0,0.08163081]
[1763192103634,0.04331,96335.0,96334.0,0.04433]
[1763192103635,0.15273668,96335.0,96334.0,0.04433]
[1763192106346,0.15273668,96335.0,96334.0,0.0722538]
[1763192107043,0.15273668,96335.0,96334.0,0.04433]
[1763192111545,0.16649668,96335.0,96334.0,0.04433]
[1763192112249,0.04327,96333.0,96332.0,0.3608]
[1763192112755,0.16210871,96333.0,96332.0,0.3608]
[1763192113452,0.04327,96331.0,96330.0,0.00015568]
[1763192113853,0.15897313,96331.0,96330.0,0.00015568]
[1763192117352,0.04327,96318.0,96317.0,0.3608]
[1763192117860,0.15415513,96318.0,96317.0,0.3608]
[1763192118556,0.15415513,96318.0,96317.0,0.3618]
[1763192119056,0.15415513,96318.0,96317.0,0.3628]
[1763192119557,0.15415513,96318.0,96317.0,0.3618]
[1763192120054,0.15415513,96318.0,96317.0,0.3628]
[1763192121255,0.15415513,96318.0,96317.0,0.38534]
[1763192123954,0.15415513,96318.0,96317.0,0.40672]
[1763192125056,0.15415513,96318.0,96317.0,0.38534]
[1763192125458,0.15415513,96318.0,96317.0,0.40672]
[1763192131455,0.15415513,96318.0,96317.0,0.38534]
[1763192131663,0.15415513,96318.0,96317.0,0.3628]
[1763192131863,0.15415513,96318.0,96317.0,0.40678]
[1763192133258,0.15415513,96318.0,96317.0,0.3628]